bitfinex/quotes_ETHUSD_20241231
["timestamp","ask_amount","ask_price","bid_price","bid_amount"]
[1735652558796,2.91973,3425.0,3424.8,0.04158732]
[1735652559086,0.667553,3424.9,3424.5,0.7829]
[1735652559479,0.667553,3424.9,3424.6,0.04136947]
[1735652560658,3.0,3425.0,3424.6,0.04136947]
[1735652561994,3.0,3425.0,3424.2,0.7829]
[1735652562171,0.14852203,3425.2,3424.7,0.04136097]
[1735652562492,3.0,3425.1,3424.2,3.70327]
[1735652562691,0.7558,3425.4,3424.8,0.04135248]
[1735652562858,6.13623336,3425.3,3424.3,2.92023]
[1735652563056,3.13623336,3425.3,3424.3,2.92023]
[1735652563257,2.91953,3425.2,3424.4,0.04138646]
[1735652564391,0.21676336,3425.3,3424.2,0.7829]
[1735652564392,2.91963,3425.1,3424.2,0.7829]
[1735652564556,3.0,3425.0,3424.5,0.04137796]
[1735652564758,0.591963,3424.9,3424.2,0.7829]
[1735652564990,0.591963,3424.9,3424.6,0.04136947]
[1735652565190,0.591963,3424.9,3424.2,0.7829]
[1735652565398,2.91972,3425.0,3424.7,0.04136097]
[1735652565695,0.21676336,3425.3,3424.2,0.7829]
[1735652565696,2.91979,3424.9,3424.2,0.7829]
[1735652566104,2.91979,3424.9,3424.3,0.04139496]
[1735652566398,3.67567,3424.8,3424.3,0.04139496]
[1735652566588,2.92008,3424.6,3423.9,0.7829]
[1735652566756,0.367588,3424.5,3424.4,0.04138646]
[1735652566965,0.367588,3424.5,3423.9,0.7829]
[1735652567183,0.367588,3424.5,3424.4,0.04002713]
[1735652567387,0.367588,3424.5,3423.9,0.7829]
[1735652567576,2.92017,3424.5,3424.4,0.03866773]
[1735652567775,2.92017,3424.5,3423.9,0.7829]
[1735652568103,2.92017,3424.5,3424.4,0.03866773]
[1735652568335,2.92017,3424.5,3423.9,0.7829]
[1735652568662,3.49144133,3424.5,3424.4,0.03866773]
[1735652568993,3.91616546,3424.5,3423.9,0.7829]
[1735652569199,0.99599546,3424.5,3424.4,0.03866773]
[1735652569388,3.57127133,3424.5,3423.9,0.7829]
[1735652569588,3.57127133,3424.5,3424.4,0.03866773]
[1735652569788,3.57127133,3424.5,3423.9,0.7829]
[1735652569989,3.49141133,3424.5,3424.4,0.03866773]
[1735652570175,3.49141133,3424.5,3423.9,0.7829]
[1735652570377,3.0,3424.6,3423.9,0.7829]
[1735652570579,2.92005,3424.6,3424.0,0.03870172]
[1735652571201,2.92013,3424.5,3424.0,0.03870172]
[1735652572621,3.0,3424.3,3424.0,0.03870172]
[1735652572918,3.0,3424.3,3423.6,0.8024]
[1735652573297,3.0,3424.3,3423.7,0.03913534]
[1735652574004,3.51873267,3424.6,3423.7,0.03913534]
[1735652574345,3.0,3424.3,3423.7,0.03913534]
[1735652575103,3.7732,3424.3,3423.7,0.03913534]
[1735652575332,2.7732,3424.3,3423.7,0.03913534]
[1735652576384,0.44212061,3424.5,3423.7,0.03913534]
[1735652576585,0.44212061,3424.5,3423.6,3.72323]
[1735652576786,0.44212061,3424.5,3423.8,0.03791538]
[1735652576988,0.43228031,3424.4,3423.6,3.72323]
[1735652577211,0.43228031,3424.4,3423.9,0.03790688]
[1735652577525,3.43228031,3424.4,3423.6,3.72323]
[1735652577724,3.43228031,3424.4,3424.0,0.03789838]
[1735652577916,0.43228031,3424.4,3423.6,0.8024]
[1735652578113,1.37185267,3424.6,3424.1,0.03788989]
[1735652578328,0.59865267,3424.6,3424.1,0.8024]
[1735652578629,0.59865267,3424.6,3424.2,0.03788139]
[1735652579114,3.59865267,3424.6,3424.2,0.03788139]
[1735652579317,3.0,3424.6,3424.2,0.03788139]
[1735652579513,3.57565624,3424.7,3424.2,0.03788139]
[1735652579705,4.30253186,3424.7,3424.2,0.03788139]
[1735652579907,4.30253186,3424.7,3424.1,0.8024]
[1735652580116,4.22250186,3424.7,3424.3,0.03787289]
[1735652580316,1.30253186,3424.7,3424.2,0.03788139]
[1735652580516,5.92013,3424.5,3423.9,0.8024]
[1735652580844,3.64239619,3424.5,3423.9,0.8024]
[1735652581041,0.92056254,3424.9,3424.0,2.92056]
[1735652581195,3.0,3424.8,3424.0,2.95845838]
[1735652581722,2.91997,3424.7,3424.0,0.03789838]
[1735652581894,3.36218029,3424.7,3424.0,0.03789838]
[1735652582095,3.0,3424.6,3424.0,0.03789838]
[1735652582329,3.36218029,3424.7,3424.0,0.03789838]
[1735652582330,0.44221029,3424.7,3424.0,0.03789838]
[1735652582529,3.0,3424.6,3424.0,0.03789838]
[1735652583532,2.91999,3424.7,3424.0,0.03789838]
[1735652583533,3.0,3424.7,3424.0,0.03789838]
[1735652584031,0.14736254,3424.9,3424.1,0.8024]
[1735652584239,0.58157032,3425.0,3424.3,0.8024]
[1735652584411,2.91997,3424.7,3424.2,0.03818394]
[1735652584621,2.91997,3424.7,3424.1,0.8024]
[1735652584819,2.91997,3424.7,3424.3,0.03803471]
[1735652585026,2.91997,3424.7,3424.1,0.8024]
[1735652585637,0.7732,3424.9,3424.1,0.8024]
[1735652585938,0.74392785,3424.8,3424.4,0.03802622]
[1735652586142,2.91997,3424.7,3424.1,0.8024]
[1735652586339,0.8003,3424.6,3423.3,0.7871]
[1735652586496,2.92052,3424.1,3423.3,0.7871]
[1735652586701,2.92052,3424.1,3423.4,0.03778747]
[1735652587311,0.292052,3424.1,3423.4,0.03778747]
[1735652587516,2.92066,3423.9,3423.4,0.03778747]
[1735652587912,2.92066,3423.9,3423.3,0.7871]
[1735652588113,2.92066,3423.9,3423.5,0.03693511]
[1735652588299,2.92066,3423.9,3423.4,0.03694361]
[1735652588511,2.92066,3423.9,3423.5,0.03693511]
[1735652588800,2.92066,3423.9,3423.3,0.7871]
[1735652589441,2.92066,3423.9,3423.4,0.03694361]
[1735652589632,2.92066,3423.9,3423.3,0.7871]
[1735652589834,2.92066,3423.9,3423.5,0.03693511]
[1735652590035,2.92066,3423.9,3423.4,0.03694361]
[1735652590238,2.92075,3423.8,3423.3,0.7871]
[1735652590436,2.92075,3423.8,3423.5,0.03693511]
[1735652590631,2.92075,3423.8,3423.4,0.03702103]
[1735652590848,2.92075,3423.8,3423.3,0.7871]
[1735652591111,2.92075,3423.8,3423.5,0.03701253]
[1735652591423,0.40423212,3423.7,3423.6,0.03700403]
[1735652591640,0.40423212,3423.7,3423.3,0.7871]
[1735652591972,0.40423212,3423.7,3423.4,0.03702103]
[1735652592174,0.40423212,3423.7,3423.0,0.7586]
[1735652592424,0.7563,3423.5,3423.1,0.03630917]
[1735652592725,0.7563,3423.5,3422.5,0.7586]
[1735652592929,0.7563,3423.5,3423.2,0.03510994]
[1735652593135,1.33150802,3423.5,3422.5,0.7586]
[1735652593281,2.92129,3423.2,3422.5,0.7586]
[1735652593641,2.92133,3423.1,3422.6,0.03516096]
[1735652593948,0.27366462,3423.1,3422.6,0.03516096]
[1735652594426,0.27366462,3423.0,3422.6,0.03516096]
[1735652594980,0.27366462,3422.9,3422.6,0.03516096]
[1735652595782,0.27366462,3422.8,3422.6,0.03516096]
[1735652596319,0.27366462,3422.7,3422.6,0.03516096]
[1735652596780,2.92132,3423.2,3422.6,0.03516096]
[1735652596983,2.92133,3423.1,3422.6,0.03516096]
[1735652597436,3.0,3423.0,3422.6,0.03516096]
[1735652597599,0.592133,3422.9,3422.6,0.03516096]
[1735652597782,1.348433,3422.9,3422.6,0.03516096]
[1735652597984,1.348433,3422.9,3422.4,0.1722216]
[1735652598186,1.348433,3422.9,3422.7,0.03609607]
[1735652598382,1.348433,3422.9,3422.4,0.1722216]
[1735652598621,2.9218,3422.6,3422.4,0.1722216]
[1735652598808,2.92184,3422.5,3422.4,0.1722216]
[1735652599831,3.67814,3422.5,3422.4,0.1722216]
[1735652600038,3.9097215,3422.8,3422.4,0.1722216]
[1735652600183,1.44727215,3422.7,3422.4,0.1722216]
[1735652600528,3.0,3422.5,3422.4,0.1722216]
[1735652601015,5.92184,3422.5,3422.4,0.1722216]
[1735652603549,3.0,3422.4,3421.3,2.8536116]
[1735652603727,2.92201,3422.4,3421.3,2.8536116]
[1735652603931,0.292201,3422.3,3421.4,2.95935373]
[1735652604231,7.36896215,3422.7,3421.6,2.92254]
[1735652604430,4.44727215,3422.7,3421.5,0.03659522]
[1735652604594,2.92197,3422.4,3421.2,2.92287]
[1735652604797,7.36898215,3422.7,3421.6,0.03658671]
[1735652604798,3.0,3422.2,3421.6,0.03658671]
[1735652605020,2.92214,3422.2,3421.2,2.92287]
[1735652605331,0.292197,3422.3,3421.7,0.0365782]
[1735652605503,0.292197,3422.3,3421.3,2.92284]
[1735652605690,0.292197,3422.3,3421.8,0.03656969]
[1735652605890,0.292197,3422.3,3421.3,2.92284]
[1735652605891,0.3214137,3422.2,3420.4,0.58114641]
[1735652606133,5.79306085,3422.0,3421.9,0.03656118]
[1735652606429,5.92226,3422.0,3420.5,2.92354]
[1735652606603,3.0,3422.0,3421.9,0.03656118]
[1735652606810,3.46827677,3422.0,3421.1,0.0438]
[1735652607009,3.46827677,3422.0,3421.9,0.03656118]
[1735652607203,3.46827677,3422.0,3420.7,2.79306085]
[1735652607403,3.46827677,3422.0,3421.9,0.03656118]
[1735652607611,3.46827677,3422.0,3421.1,2.92303]
[1735652607797,3.0,3422.0,3421.9,0.03675851]
[1735652607992,3.0,3422.0,3421.1,2.92303]
[1735652608226,3.0,3422.0,3421.9,0.03675851]
[1735652608425,3.0,3422.0,3421.0,2.79306085]
[1735652608732,3.0,3422.0,3421.9,0.03675851]
[1735652608895,3.0,3422.0,3421.3,2.92279]
[1735652609098,3.0,3422.0,3421.9,0.03735744]
[1735652609297,3.0,3422.0,3421.3,2.92279]
[1735652609519,3.0,3422.0,3421.9,0.03735744]
[1735652609693,3.0,3422.0,3421.3,2.92279]
[1735652609916,3.0,3422.0,3421.9,0.03735744]
[1735652610112,3.0,3422.0,3421.3,2.92279]
[1735652610338,3.0,3422.0,3421.9,0.03735744]
[1735652610540,3.0,3422.0,3421.3,2.92279]
[1735652610753,3.0,3422.0,3421.9,0.03735744]
[1735652610952,3.0,3422.0,3421.3,2.92279]
[1735652611160,4.42380215,3422.7,3421.9,0.03735744]
[1735652611452,4.42380215,3422.7,3421.3,2.79306085]
[1735652611453,5.92175,3422.6,3422.0,0.03734894]
[1735652611657,5.92175,3422.6,3421.6,2.92259]
[1735652611863,5.92175,3422.6,3422.1,0.03729814]
[1735652612024,5.92175,3422.6,3421.6,2.92259]
[1735652612226,0.81514894,3422.5,3422.2,0.03728963]
[1735652612531,0.81514894,3422.5,3421.1,2.92297]
[1735652612750,0.81514894,3422.5,3421.3,2.92285]
[1735652612949,3.0,3422.2,3421.3,2.92285]
[1735652613144,3.0,3422.2,3421.4,0.03603719]
[1735652613348,0.592201,3422.1,3421.4,0.03603719]
[1735652613584,2.92212,3422.2,3421.4,0.03603719]
[1735652613748,3.73705894,3422.5,3421.3,2.92285]
[1735652613948,3.73705894,3422.5,3420.5,0.57653265]
[1735652613949,0.81514894,3422.5,3421.6,2.79306085]
[1735652614330,0.81514894,3422.5,3421.7,0.03601166]
[1735652615668,0.81514894,3422.5,3421.7,2.95852166]
[1735652615869,3.0,3422.6,3421.7,2.95852166]
[1735652616076,3.0,3422.6,3421.7,0.03601166]
[1735652616251,3.67951,3423.0,3421.7,0.03601166]
[1735652616457,3.0,3422.9,3421.7,0.03601166]
[1735652616658,3.0,3422.9,3421.9,2.92233]
[1735652617032,3.0,3422.9,3422.0,2.95822614]
[1735652617982,4.25598406,3423.0,3422.1,2.92215]
[1735652617983,1.33457406,3423.0,3422.1,2.92215]
[1735652618139,4.33457406,3423.0,3422.1,2.92215]
[1735652618337,1.22382917,3423.6,3422.2,5.75109997]
[1735652618338,3.67929,3423.3,3422.2,5.75109997]
[1735652618636,1.98192917,3423.6,3422.5,2.79306085]
[1735652618839,3.0,3423.2,3422.3,2.95795062]
[1735652619037,4.98192917,3423.6,3422.6,0.0359351]
[1735652619280,3.0,3423.2,3422.2,2.79306085]
[1735652619450,3.0,3423.2,3422.7,0.0359266]
[1735652619650,3.0,3423.2,3422.2,2.79306085]
[1735652619851,3.0,3423.2,3422.2,5.71511085]
[1735652620077,3.0,3423.2,3422.3,0.03547438]
[1735652620280,3.69535784,3423.2,3422.3,0.03547438]
[1735652620481,3.95334835,3423.5,3422.4,2.92184]
[1735652620772,0.27328657,3423.1,3422.4,2.95730588]
[1735652620971,0.27328657,3423.1,3422.6,2.92171]
[1735652621181,0.27328657,3423.0,3422.4,2.95736588]
[1735652621336,0.27328657,3423.0,3422.6,2.92174]
[1735652621542,0.27328657,3423.0,3422.2,2.79306085]
[1735652621885,0.27328657,3422.9,3422.4,2.92189]
[1735652622243,0.27328657,3422.9,3422.5,0.03545737]
[1735652622440,0.27328657,3422.9,3422.4,2.92189]
[1735652622649,2.92108,3423.4,3422.6,0.03544887]
[1735652622847,2.92108,3423.4,3422.4,2.92189]
[1735652623049,3.288998,3423.4,3422.7,0.03544036]
[1735652623247,3.288998,3423.4,3422.4,2.92189]
[1735652623447,3.288998,3423.4,3422.8,0.03543186]
[1735652623648,3.288998,3423.4,3422.4,2.92189]
[1735652623951,0.367918,3423.4,3422.2,2.79306085]
[1735652624152,2.92102,3423.5,3422.3,0.31478046]
[1735652624485,2.92102,3423.5,3422.5,2.92178]
[1735652624684,2.92102,3423.5,3422.2,5.71512085]
[1735652624685,0.7581,3423.6,3422.4,0.03546588]
[1735652624879,3.0,3423.3,3422.6,0.03544887]
[1735652625087,3.0,3423.3,3422.3,2.92197]
[1735652625273,0.592109,3423.2,3422.7,0.03427804]
[1735652625590,0.592109,3423.2,3422.8,0.03426954]
[1735652625883,0.592109,3423.2,3422.4,2.92192]
[1735652626186,2.92116,3423.3,3422.4,2.92192]
[1735652626348,2.92116,3423.3,3422.5,0.03429505]
[1735652627250,2.921,3423.5,3422.5,0.03429505]
[1735652627883,0.7581,3423.0,3422.5,0.03429505]
[1735652628185,0.7581,3423.0,3422.2,5.71508085]
[1735652628688,0.7581,3423.0,3422.3,0.03431206]
[1735652628885,1.426037,3423.0,3422.3,0.03431206]
[1735652629393,0.667937,3423.0,3422.3,0.03431206]
[1735652629687,3.0,3423.6,3422.5,2.79306085]
[1735652629688,0.7581,3423.6,3422.5,2.79306085]
[1735652630062,3.67906,3423.6,3422.6,2.95603655]
[1735652630290,3.0,3423.4,3422.6,2.95603655]
[1735652631149,0.7581,3423.6,3422.6,0.03428655]
[1735652631371,2.92108,3423.4,3422.6,0.03428655]
[1735652631571,2.92108,3423.4,3422.4,2.92189]
[1735652632091,2.92108,3423.4,3422.5,0.03399215]
[1735652632295,2.92116,3423.3,3422.5,0.03399215]
[1735652632492,0.7746,3423.2,3422.5,0.03399215]
[1735652632691,3.69588,3423.2,3421.9,2.79306085]
[1735652632991,1.51557234,3423.5,3422.6,2.92168]
[1735652633192,2.92112,3423.4,3422.4,2.9219]
[1735652633364,3.0,3423.3,3422.4,2.9219]
[1735652633550,0.7746,3423.5,3422.5,2.92176]
[1735652633757,0.7746,3423.5,3422.5,2.95513919]
[1735652634101,3.69562,3423.5,3422.6,2.92175]
[1735652634269,0.97522118,3423.4,3422.6,2.95512069]
[1735652634885,3.97522118,3423.4,3422.6,2.95512069]
[1735652635193,0.97522118,3423.4,3422.6,0.03337069]
[1735652635411,0.97522118,3423.4,3422.7,2.92164]
[1735652635791,0.97522118,3423.4,3422.8,2.92158]
[1735652635993,0.7746,3423.5,3422.8,2.95493368]
[1735652636780,0.7746,3423.5,3422.8,0.03335368]
[1735652636978,0.7746,3423.5,3422.5,2.79306085]
[1735652636979,0.7746,3423.5,3422.7,2.92162]
[1735652637199,1.22382917,3423.7,3422.9,2.92149]
[1735652637399,1.22382917,3423.7,3423.0,2.92136]
[1735652637599,1.22382917,3423.7,3423.0,2.95469667]
[1735652637779,1.22382917,3423.7,3423.0,0.03333667]
[1735652638099,1.22382917,3423.7,3423.2,2.92123]
[1735652638269,4.22382917,3424.0,3423.3,2.92108]
[1735652638463,0.7746,3424.1,3423.3,2.95422917]
[1735652639378,0.7746,3424.1,3423.3,0.03314917]
[1735652639585,0.7746,3424.1,3423.2,2.92116]
[1735652639784,0.98985909,3424.0,3423.2,2.92116]
[1735652639998,0.98985909,3424.0,3423.3,0.03295199]
[1735652640413,0.98985909,3424.0,3423.3,2.95408199]
[1735652640608,0.7746,3424.1,3423.3,2.95408199]
[1735652641014,0.7746,3424.1,3423.3,0.03295199]
[1735652641313,3.0,3424.0,3423.1,5.71436085]
[1735652641470,3.0,3424.0,3423.4,0.03290828]
[1735652641811,3.0,3424.0,3423.1,5.71436085]
[1735652641978,0.51199734,3423.9,3423.1,5.71436085]
[1735652642185,0.51199734,3423.9,3423.2,0.03292528]
[1735652642495,1.06618222,3423.6,3423.2,0.03292528]
[1735652642700,3.98710222,3423.6,3422.5,2.79306085]
[1735652642897,1.06618222,3423.6,3423.3,0.03245199]
[1735652643103,2.92098,3423.5,3422.5,5.71485085]
[1735652643414,0.7746,3423.3,3422.1,2.92209]
[1735652644171,2.92133,3423.1,3422.1,2.92209]
[1735652644428,0.7746,3423.3,3422.1,2.92209]
[1735652644612,0.7746,3423.3,3421.9,2.79306085]
[1735652644824,2.92124,3423.2,3422.2,2.92207]
[1735652645699,3.0,3423.1,3422.2,2.92207]
[1735652646208,2.92157,3422.9,3421.9,5.71540085]
[1735652646414,0.7739,3423.0,3421.9,2.79306085]
[1735652646712,0.7739,3423.0,3422.1,2.9221]
[1735652646873,0.369525,3422.9,3422.1,2.9221]
[1735652647413,0.71196524,3422.8,3422.1,2.9221]
[1735652647624,0.71196524,3422.8,3421.7,2.92249]
[1735652647805,1.48586524,3422.7,3421.6,2.79306085]
[1735652648002,1.48586524,3422.7,3422.0,2.92226]
[1735652648217,1.48586524,3422.7,3421.9,2.92229]
[1735652648390,0.7739,3422.7,3421.9,2.92229]
[1735652649482,0.27386547,3422.6,3422.0,2.92226]
[1735652649811,0.27386547,3422.6,3422.1,2.92217]
[1735652650136,0.45640906,3422.4,3422.1,2.92217]
[1735652650286,0.45640906,3422.4,3421.6,2.92255]
[1735652650287,1.23030906,3422.4,3421.6,2.92255]
[1735652650684,0.74853831,3422.0,3421.0,1.20551401]
[1735652650920,0.74853831,3422.0,3421.4,2.92271]
[1735652651330,0.74853831,3422.0,3421.9,2.79306085]
[1735652651548,0.29212925,3422.0,3421.9,9.51989085]
[1735652651752,0.29212925,3422.0,3421.9,9.51889085]
[1735652652224,0.27371952,3422.0,3421.9,5.71541085]
[1735652652432,0.27371952,3422.0,3421.9,9.01889085]
[1735652652719,0.7739,3423.3,3422.6,2.92167]
[1735652652927,0.7739,3423.3,3422.7,2.92164]
[1735652653122,0.71163349,3423.2,3422.2,2.79306085]
[1735652653287,0.98533653,3423.2,3422.5,2.92181]
[1735652653687,0.27370304,3423.2,3422.5,2.92181]
[1735652653898,0.27370304,3423.1,3422.5,2.79306085]
[1735652654098,0.27370304,3423.1,3422.8,2.92152]
[1735652654387,1.1677679,3423.0,3422.8,2.92152]
[1735652654731,1.1677679,3423.0,3422.5,2.79306085]
[1735652654938,1.1677679,3423.0,3422.6,2.92173]
[1735652655324,0.71161236,3422.9,3422.7,0.03209826]
[1735652655543,0.71161236,3422.9,3422.5,2.79306085]
[1735652655691,0.71161236,3422.9,3422.8,5.74668133]
[1735652655898,0.71161236,3422.9,3422.8,5.71464085]
[1735652656194,0.71161236,3422.9,3422.8,5.74668133]
[1735652657029,0.27370304,3422.9,3422.8,5.74668133]
[1735652657838,1.22381184,3424.0,3423.4,2.92105]
[1735652658138,2.60961777,3424.2,3423.5,2.92097]
[1735652658139,1.22381184,3424.1,3423.5,2.92097]
[1735652658340,1.22381184,3424.1,3423.9,5.71367085]
[1735652658633,1.22381184,3424.1,3424.0,0.03156545]
[1735652659025,1.22381184,3424.1,3424.0,2.95212545]
[1735652659410,1.93450191,3424.1,3424.0,2.95212545]
[1735652659611,0.71069007,3424.1,3424.0,2.95212545]
[1735652660235,0.27334233,3424.1,3424.0,2.95212545]
[1735652660915,0.7739,3424.8,3424.0,2.95212545]
[1735652661742,0.27298305,3424.7,3424.0,2.95212545]
[1735652662442,0.27298305,3424.6,3424.0,2.95212545]
[1735652662643,0.67767135,3424.6,3424.0,2.95212545]
[1735652662849,0.27298305,3424.5,3424.0,2.95212545]
[1735652663357,0.27298305,3424.5,3424.1,2.92045]
[1735652663664,0.27298305,3424.4,3424.2,0.03103486]
[1735652664212,0.27298305,3424.3,3424.2,0.03103486]
[1735652664715,0.7739,3424.8,3424.2,0.03103486]
[1735652664943,0.7739,3424.8,3423.9,5.71368085]
[1735652664944,0.37739,3424.7,3424.0,2.92054]
[1735652665177,0.7739,3424.8,3424.3,0.03102637]
[1735652665319,0.7739,3424.8,3424.1,2.92045]
[1735652665514,0.27259502,3424.7,3424.4,0.03101787]
[1735652665713,0.27259502,3424.7,3424.1,2.92045]
[1735652665958,0.27259502,3424.7,3424.5,0.03100938]
[1735652666193,0.27259502,3424.6,3424.5,0.03100938]
[1735652666358,0.27259502,3424.6,3424.1,2.92045]
[1735652666966,0.27259502,3424.5,3424.2,0.03103486]
[1735652667443,0.27259502,3424.4,3424.2,0.03103486]
[1735652667816,0.7739,3424.8,3424.2,0.03103486]
[1735652668054,1.5006224,3424.8,3424.2,0.03103486]
[1735652668360,4.5006224,3424.8,3424.2,0.03103486]
[1735652668665,0.27243641,3424.7,3423.9,2.92059]
[1735652668856,0.27243641,3424.7,3424.3,0.02878603]
[1735652669164,0.27243641,3424.7,3424.2,2.92038]
[1735652669365,0.27243641,3424.6,3423.9,2.79306085]
[1735652669568,0.27243641,3424.6,3424.4,2.92021]
[1735652669865,1.22381184,3425.3,3424.5,5.74195285]
[1735652670072,1.22381184,3425.3,3425.0,2.9197]
[1735652670567,0.27225811,3425.2,3425.1,0.02866884]
[1735652672632,0.27206975,3425.2,3425.1,2.91962]
[1735652672831,0.27206975,3425.2,3425.1,2.94828884]
[1735652673540,0.27206975,3425.2,3425.1,5.74134969]
[1735652673744,0.81219834,3425.5,3425.1,5.74134969]
[1735652673945,0.81219834,3425.5,3425.4,5.71242085]
[1735652674250,0.81219834,3425.5,3425.4,5.74063526]
[1735652677034,0.81219834,3425.5,3425.4,2.94757441]
[1735652677236,1.57639834,3425.5,3425.4,0.02821441]
[1735652677467,1.73403817,3425.5,3424.5,2.79306085]
[1735652677772,1.73403817,3425.5,3425.4,0.02765207]
[1735652677972,1.73403817,3425.5,3424.8,2.79306085]
[1735652678132,1.57639834,3425.5,3425.4,0.02765207]
[1735652678336,0.81219834,3425.5,3425.2,2.91947]
[1735652678550,0.81219834,3425.5,3425.4,0.02765207]
[1735652678747,0.81219834,3425.5,3425.4,2.91936]
[1735652678947,0.81219834,3425.5,3425.4,5.74007292]
[1735652680046,0.81219834,3425.5,3425.4,10.74007292]
[1735652680268,1.98801184,3426.8,3426.4,2.91851]
[1735652680479,0.7642,3427.4,3426.6,2.91832]
[1735652680800,3.7642,3427.4,3426.5,0.02657439]
[1735652681000,0.97413096,3427.3,3426.7,0.02655742]
[1735652681205,1.24590045,3427.3,3426.6,2.94462996]
[1735652681361,1.24590045,3427.3,3426.8,0.02628894]
[1735652681545,0.27176949,3427.2,3426.7,0.02629742]
[1735652681749,0.27176949,3427.2,3426.4,2.9185]
[1735652682097,3.7642,3427.0,3426.0,2.91881]
[1735652682404,3.7642,3427.0,3426.5,0.03252416]
[1735652682606,3.7642,3427.0,3426.1,2.91875]
[1735652682745,3.7642,3427.0,3426.6,0.03251355]
[1735652682944,0.27176949,3426.9,3426.1,2.91875]
[1735652683185,0.77466685,3426.8,3426.7,0.03250295]
[1735652683383,0.7642,3426.7,3426.0,2.91878]
[1735652684165,3.7642,3426.7,3425.9,2.79306085]
[1735652684395,0.7642,3426.7,3425.6,2.79306085]
[1735652684564,3.0,3427.1,3425.1,3.51706936]
[1735652684565,2.91855,3426.4,3425.3,2.79306085]
[1735652684792,1.132475,3426.3,3425.3,2.79306085]
[1735652685179,1.132475,3426.3,3425.5,2.91926]
[1735652685640,1.132475,3426.3,3425.6,2.94925044]
[1735652686343,0.7642,3427.3,3426.0,2.91885]
[1735652686638,3.68221,3427.0,3426.0,2.91882]
[1735652686941,0.7642,3427.0,3426.1,0.03256659]
[1735652687113,0.7642,3427.0,3426.2,2.79306085]
[1735652687296,0.7642,3427.0,3426.4,2.91845]
[1735652687734,0.7642,3427.0,3426.5,0.02802838]
[1735652688150,0.7642,3427.0,3426.6,2.91833]
[1735652688437,0.7642,3427.0,3426.7,2.91818]
[1735652688635,0.7642,3427.3,3426.7,2.91818]
[1735652688791,0.92179332,3427.3,3426.8,0.02800111]
[1735652688983,0.70747805,3427.2,3426.8,0.02800111]
[1735652689801,0.92179332,3427.3,3426.8,0.02800111]
[1735652690843,0.92179332,3427.3,3426.7,2.91821]
[1735652691022,0.92179332,3427.3,3426.5,2.91838]
[1735652691206,0.17335265,3427.2,3426.5,2.91838]
[1735652691900,0.17335265,3427.2,3426.2,2.79306085]
[1735652692099,0.17335265,3427.2,3426.8,2.91817]
[1735652692302,0.7974,3427.3,3426.3,2.79306085]
[1735652692521,0.7974,3427.3,3426.6,2.91831]
[1735652693805,3.7974,3427.3,3426.4,2.9185]
[1735652694686,3.7974,3427.3,3426.5,2.91839]
[1735652694888,0.75267932,3427.2,3426.3,5.71161085]
[1735652695088,0.75267932,3427.2,3426.3,2.91855]
[1735652696546,0.7974,3427.1,3426.3,2.91855]
[1735652696686,0.7974,3427.1,3426.4,2.91844]
[1735652697325,0.7974,3427.1,3426.1,2.91871]
[1735652697536,0.15500793,3427.0,3426.2,2.91864]
[1735652697736,0.15500793,3427.0,3426.0,2.79306085]
[1735652697899,0.15500793,3427.0,3425.4,0.5717996]
[1735652697900,3.0,3426.9,3425.9,2.91888]
[1735652698121,2.91819,3426.8,3425.7,2.79306085]
[1735652698460,2.91826,3426.7,3425.7,5.71214085]
[1735652698600,1.089226,3426.6,3425.7,2.79306085]
[1735652698999,1.089226,3426.6,3426.0,2.91883]
[1735652699754,1.089226,3426.6,3425.8,2.919]
[1735652700736,0.27274073,3426.5,3425.8,2.919]
[1735652701056,0.7974,3426.4,3425.7,2.79306085]
[1735652701257,1.77099003,3426.4,3425.7,2.79306085]
[1735652701396,1.77099003,3426.4,3425.7,5.71208085]
[1735652701759,1.34295936,3426.4,3425.8,2.91901]
[1735652701938,0.27274073,3426.3,3425.8,2.91901]
[1735652702119,0.27274073,3426.3,3425.7,2.79306085]
[1735652702452,0.27274073,3426.2,3425.7,5.71216085]
[1735652703417,0.27274073,3426.1,3425.7,5.71216085]
[1735652704085,0.27274073,3426.1,3425.3,2.91942]
[1735652704086,0.27274073,3426.0,3425.4,2.79306085]
[1735652704247,0.7974,3425.9,3425.5,2.91924]
[1735652704448,0.27274073,3425.8,3425.6,2.91913]
[1735652704857,0.27274073,3425.8,3425.7,2.79306085]
[1735652705058,0.7974,3426.9,3426.1,2.91877]
[1735652705456,0.7974,3426.9,3425.9,2.91892]
[1735652705746,0.7753,3426.6,3425.7,2.9191]
[1735652706169,0.7753,3426.6,3425.8,2.919]
[1735652706488,0.27319567,3426.5,3425.8,2.919]
[1735652706781,0.96986424,3426.5,3425.9,2.91893]
[1735652707081,0.27319567,3426.4,3425.9,2.91893]
[1735652707455,0.27319567,3426.4,3426.2,2.91867]
[1735652707662,0.27319567,3426.3,3426.2,2.91867]
[1735652708403,5.67e-06,3426.3,3426.2,5.83315]
[1735652708601,5.67e-06,3426.3,3426.2,8.55568]
[1735652708922,0.2496,3426.6,3426.5,2.91842]
[1735652709069,0.2496,3426.6,3426.5,5.71148085]
[1735652710806,1.58703317,3427.4,3426.9,2.91801]
[1735652711287,1.58703317,3427.4,3427.0,2.91798]
[1735652712192,1.58703317,3427.4,3427.1,2.91791]
[1735652713648,1.58703317,3427.4,3426.9,2.91806]
[1735652713887,1.74573649,3427.4,3425.8,0.59063261]
[1735652714085,0.769,3427.3,3426.1,2.79306085]
[1735652714293,0.769,3427.1,3426.2,2.91865]
[1735652714587,0.769,3427.1,3426.4,2.79306085]
[1735652714790,0.769,3427.1,3426.3,2.91859]
[1735652715091,0.368686,3427.0,3426.3,2.91859]
[1735652716452,0.769,3427.1,3426.3,2.91859]
[1735652718881,0.769,3427.1,3426.1,2.79306085]
[1735652719107,0.769,3427.1,3426.7,2.79306085]
[1735652719413,0.769,3427.1,3427.0,2.918]
[1735652719775,0.769,3427.1,3426.8,2.91809]
[1735652720098,0.769,3427.1,3426.9,2.91808]
[1735652720807,0.769,3427.1,3426.7,2.91824]
[1735652721125,0.92707332,3427.1,3426.7,2.91824]
[1735652721419,0.769,3427.1,3426.7,2.91824]
[1735652722421,0.769,3427.1,3426.8,2.91815]